[Event "*** MasterClass Titled Tuesday Blitz"]
[Site "Chess.com"]
[Date "2017.10.03"]
[Round "2"]
[White "NMJeevanK"]
[Black "Tonychess32"]
[Result "1-0"]
[WhiteElo "2330"]
[BlackElo "2396"]
[TimeControl "180+2"]
[EndTime "13:24:24 PDT"]
[Termination "NMJeevanK won by checkmate"]

1. e4 {[%clk 0:03:01.9]} 1... e5 {[%clk 0:02:59.8]} 2. Nf3 {[%clk 0:03:03.1]}
2... Nc6 {[%clk 0:03:00.7]} 3. Bb5 {[%clk 0:03:04.2]} 3... a6 {[%clk 0:03:01.9]}
4. Ba4 {[%clk 0:03:05.6]} 4... Nf6 {[%clk 0:03:02.7]} 5. O-O {[%clk 0:03:07.2]}
5... b5 {[%clk 0:03:03.8]} 6. Bb3 {[%clk 0:03:07.8]} 6... Be7 {[%clk 0:03:05.7]}
7. Re1 {[%clk 0:03:08.6]} 7... O-O {[%clk 0:03:06.4]} 8. c3 {[%clk 0:03:09.5]}
8... d6 {[%clk 0:03:07.5]} 9. h3 {[%clk 0:03:10]} 9... Na5 {[%clk 0:03:08.6]}
10. Bc2 {[%clk 0:03:11.2]} 10... c5 {[%clk 0:03:09.8]} 11. d4 {[%clk 0:03:13.1]}
11... Qc7 {[%clk 0:03:10.5]} 12. Nbd2 {[%clk 0:03:12.5]} 12... cxd4 {[%clk
0:03:11.4]} 13. cxd4 {[%clk 0:03:13.5]} 13... Nc6 {[%clk 0:03:13.3]} 14. d5
{[%clk 0:03:08.2]} 14... Nb4 {[%clk 0:03:13.5]} 15. Bb1 {[%clk 0:03:09.6]} 15...
a5 {[%clk 0:03:14.7]} 16. a3 {[%clk 0:03:10.5]} 16... Na6 {[%clk 0:03:15.5]} 17.
Nf1 {[%clk 0:03:12.2]} 17... Bd7 {[%clk 0:03:07.5]} 18. Ng3 {[%clk 0:03:13]}
18... Qb7 {[%clk 0:03:06.7]} 19. Nh4 {[%clk 0:03:05.4]} 19... g6 {[%clk
0:02:33.1]} 20. f4 {[%clk 0:02:59]} 20... exf4 {[%clk 0:02:29.5]} 21. Bxf4
{[%clk 0:02:58.7]} 21... Ng4 {[%clk 0:01:58.4]} 22. Nhf5 {[%clk 0:02:39.3]}
22... Qb6+ {[%clk 0:01:19.9]} 23. Ne3 {[%clk 0:02:12.8]} 23... Ne5 {[%clk
0:01:12.9]} 24. Kh2 {[%clk 0:02:03.4]} 24... Nc5 {[%clk 0:01:05.1]} 25. Rf1
{[%clk 0:01:55.8]} 25... f6 {[%clk 0:00:57.6]} 26. Bc2 {[%clk 0:01:30.9]} 26...
b4 {[%clk 0:00:54.9]} 27. axb4 {[%clk 0:01:30]} 27... Qxb4 {[%clk 0:00:54]} 28.
b3 {[%clk 0:01:26.8]} 28... Bb5 {[%clk 0:00:52.5]} 29. Rg1 {[%clk 0:00:56.7]}
29... Rab8 {[%clk 0:00:51]} 30. Ng4 {[%clk 0:00:54.3]} 30... Nxg4+ {[%clk
0:00:44.7]} 31. Qxg4 {[%clk 0:00:56.2]} 31... Bd7 {[%clk 0:00:44.9]} 32. Qh4
{[%clk 0:00:52.3]} 32... g5 {[%clk 0:00:27.6]} 33. Qh6 {[%clk 0:00:52.1]} 33...
gxf4 {[%clk 0:00:24.3]} 34. Nh5 {[%clk 0:00:53.4]} 34... Rf7 {[%clk 0:00:20.5]}
35. Raf1 {[%clk 0:00:36.8]} 35... Nxe4 {[%clk 0:00:14.5]} 36. Rxf4 {[%clk
0:00:34.2]} 36... f5 {[%clk 0:00:14.1]} 37. Bxe4 {[%clk 0:00:26.9]} 37... fxe4
{[%clk 0:00:14.3]} 38. Rxf7 {[%clk 0:00:28.1]} 38... Kxf7 {[%clk 0:00:10.1]} 39.
Qxh7+ {[%clk 0:00:27.7]} 39... Ke8 {[%clk 0:00:10.1]} 40. Qg8+ {[%clk
0:00:27.9]} 40... Bf8 {[%clk 0:00:10.3]} 41. Rf1 {[%clk 0:00:25.1]} 41... Ke7
{[%clk 0:00:06.7]} 42. Qg5+ {[%clk 0:00:15.3]} 42... Ke8 {[%clk 0:00:04.4]} 43.
Rxf8+ {[%clk 0:00:13.9]} 43... Kxf8 {[%clk 0:00:03.4]} 44. Qg7+ {[%clk
0:00:15.1]} 44... Ke8 {[%clk 0:00:04.2]} 45. Nf6+ {[%clk 0:00:16.5]} 45... Kd8
{[%clk 0:00:05.7]} 46. Qxd7# {[%clk 0:00:17.6]} 1-0

[Event "*** MasterClass Titled Tuesday Blitz"]
[Site "Chess.com"]
[Date "2017.10.03"]
[Round "2"]
[White "Keaton87"]
[Black "grzechu96"]
[Result "0-1"]
[WhiteElo "2454"]
[BlackElo "2444"]
[TimeControl "180+2"]
[EndTime "13:24:30 PDT"]
[Termination "grzechu96 won by resignation"]

1. d4 {[%clk 0:03:01.9]} 1... Nf6 {[%clk 0:03:00.1]} 2. Nf3 {[%clk 0:03:02.9]}
2... g6 {[%clk 0:03:00.9]} 3. Bf4 {[%clk 0:03:02.7]} 3... Bg7 {[%clk 0:03:02.2]}
4. e3 {[%clk 0:03:04.2]} 4... O-O {[%clk 0:03:01.6]} 5. Be2 {[%clk 0:03:05.7]}
5... d5 {[%clk 0:03:02.9]} 6. O-O {[%clk 0:03:04.2]} 6... c5 {[%clk 0:03:04.6]}
7. c3 {[%clk 0:03:04.1]} 7... b6 {[%clk 0:03:06.3]} 8. h3 {[%clk 0:03:04.1]}
8... Bb7 {[%clk 0:03:07.5]} 9. Ne5 {[%clk 0:03:03.5]} 9... Ne4 {[%clk
0:03:02.8]} 10. a4 {[%clk 0:02:53.7]} 10... Nd7 {[%clk 0:03:02.8]} 11. Nxd7
{[%clk 0:02:47.9]} 11... Qxd7 {[%clk 0:03:04.7]} 12. a5 {[%clk 0:02:49.1]} 12...
Bc6 {[%clk 0:02:58.4]} 13. Nd2 {[%clk 0:02:49.4]} 13... Nxd2 {[%clk 0:02:56.3]}
14. Qxd2 {[%clk 0:02:51.3]} 14... f6 {[%clk 0:02:42.8]} 15. b4 {[%clk
0:02:50.5]} 15... e5 {[%clk 0:02:42.5]} 16. Bg3 {[%clk 0:02:43.2]} 16... cxb4
{[%clk 0:02:13.3]} 17. cxb4 {[%clk 0:02:43.3]} 17... Bb5 {[%clk 0:02:14.7]} 18.
dxe5 {[%clk 0:02:30]} 18... fxe5 {[%clk 0:02:10.8]} 19. Rfd1 {[%clk 0:02:26.2]}
19... Bxe2 {[%clk 0:01:47.5]} 20. Qxe2 {[%clk 0:02:28.1]} 20... d4 {[%clk
0:01:48.9]} 21. exd4 {[%clk 0:02:19.6]} 21... exd4 {[%clk 0:01:50.8]} 22. Be5
{[%clk 0:02:20.6]} 22... Qe6 {[%clk 0:01:47.3]} 23. f4 {[%clk 0:02:21.2]} 23...
Rxf4 {[%clk 0:01:41.9]} 24. Re1 {[%clk 0:02:15.7]} 24... Re8 {[%clk 0:01:10.6]}
25. Bxf4 {[%clk 0:02:08.6]} 25... Qxe2 {[%clk 0:01:11.4]} 26. Rxe2 {[%clk
0:02:09.2]} 26... Rxe2 {[%clk 0:01:13.3]} 27. a6 {[%clk 0:01:56.1]} 27... Be5
{[%clk 0:00:39.6]} 28. Kf1 {[%clk 0:01:43.2]} 28... d3 {[%clk 0:00:29.3]} 29.
Bxe5 {[%clk 0:01:07.3]} 29... Rxe5 {[%clk 0:00:31.2]} 30. Rd1 {[%clk 0:01:08.3]}
30... Rd5 {[%clk 0:00:28.2]} 31. Kf2 {[%clk 0:01:08.7]} 31... b5 {[%clk
0:00:09.4]} 32. Ke3 {[%clk 0:01:08]} 32... Rd6 {[%clk 0:00:11]} 33. Rxd3 {[%clk
0:01:04.9]} 33... Rxa6 {[%clk 0:00:12.4]} 34. Rd5 {[%clk 0:00:58.3]} 34... Ra3+
{[%clk 0:00:09.8]} 35. Kf4 {[%clk 0:00:59.3]} 35... a6 {[%clk 0:00:11.7]} 36.
Kg5 {[%clk 0:00:58.8]} 36... Kf7 {[%clk 0:00:12.1]} 37. Rd7+ {[%clk 0:00:59]}
37... Ke6 {[%clk 0:00:13.6]} 38. Rxh7 {[%clk 0:00:58.2]} 38... Rg3+ {[%clk
0:00:14.7]} 39. Kf4 {[%clk 0:00:58.9]} 39... Rxg2 {[%clk 0:00:16.6]} 40. Ra7
{[%clk 0:00:59.5]} 40... Ra2 {[%clk 0:00:17.1]} 41. Kg5 {[%clk 0:00:59.3]} 41...
Kd5 {[%clk 0:00:15.4]} 42. Kxg6 {[%clk 0:01:00.4]} 42... Kc4 {[%clk 0:00:17.1]}
43. h4 {[%clk 0:01:00.8]} 43... Kxb4 {[%clk 0:00:18.7]} 44. h5 {[%clk
0:01:02.2]} 44... a5 {[%clk 0:00:20.3]} 45. h6 {[%clk 0:01:03.3]} 45... Rg2+
{[%clk 0:00:21.9]} 46. Kf7 {[%clk 0:00:57.8]} 46... Rh2 {[%clk 0:00:22.3]} 47.
Kg7 {[%clk 0:00:58.2]} 47... a4 {[%clk 0:00:23.4]} 48. h7 {[%clk 0:00:55.4]}
48... a3 {[%clk 0:00:23.3]} 49. h8=Q {[%clk 0:00:41.6]} 49... Rxh8 {[%clk
0:00:23.3]} 50. Kxh8 {[%clk 0:00:43.5]} 50... Kb3 {[%clk 0:00:24]} 51. Kg7
{[%clk 0:00:45.1]} 51... b4 {[%clk 0:00:23]} 52. Kf6 {[%clk 0:00:46.4]} 52...
Ka2 {[%clk 0:00:24.1]} 53. Rh7 {[%clk 0:00:21.6]} 53... b3 {[%clk 0:00:24.9]}
54. Ke5 {[%clk 0:00:21.5]} 54... b2 {[%clk 0:00:26.1]} 55. Rh2 {[%clk
0:00:22.2]} 55... Ka1 {[%clk 0:00:27.2]} 56. Rh3 {[%clk 0:00:22.7]} 56... a2
{[%clk 0:00:27.4]} 0-1

[Event "*** MasterClass Titled Tuesday Blitz"]
[Site "Chess.com"]
[Date "2017.10.03"]
[Round "2"]
[White "IMVoja"]
[Black "NateSolon"]
[Result "1-0"]
[WhiteElo "2410"]
[BlackElo "2313"]
[TimeControl "180+2"]
[EndTime "13:24:48 PDT"]
[Termination "IMVoja won by resignation"]

1. e4 {[%clk 0:03:01.9]} 1... e5 {[%clk 0:02:53.6]} 2. Nf3 {[%clk 0:03:02.1]}
2... Nc6 {[%clk 0:02:54.5]} 3. Nc3 {[%clk 0:03:01.3]} 3... Nf6 {[%clk
0:02:53.4]} 4. d4 {[%clk 0:03:02.3]} 4... exd4 {[%clk 0:02:53.7]} 5. Nxd4 {[%clk
0:03:03.5]} 5... Bb4 {[%clk 0:02:54.4]} 6. Nxc6 {[%clk 0:03:04.3]} 6... bxc6
{[%clk 0:02:55.1]} 7. Bd3 {[%clk 0:03:05.4]} 7... O-O {[%clk 0:02:55.7]} 8. O-O
{[%clk 0:03:05.5]} 8... d5 {[%clk 0:02:56.6]} 9. exd5 {[%clk 0:03:05.8]} 9...
cxd5 {[%clk 0:02:58.5]} 10. Bg5 {[%clk 0:03:06.5]} 10... c6 {[%clk 0:02:59.6]}
11. Qf3 {[%clk 0:03:06.9]} 11... Bd6 {[%clk 0:02:54.7]} 12. h3 {[%clk
0:02:55.3]} 12... Rb8 {[%clk 0:02:53]} 13. Rab1 {[%clk 0:02:51.9]} 13... Re8
{[%clk 0:02:45.2]} 14. b3 {[%clk 0:02:49.4]} 14... Be5 {[%clk 0:02:34.9]} 15.
Na4 {[%clk 0:02:47.8]} 15... h6 {[%clk 0:02:28.8]} 16. Bf4 {[%clk 0:02:44.6]}
16... Qc7 {[%clk 0:02:22.4]} 17. Bxe5 {[%clk 0:02:42.8]} 17... Qxe5 {[%clk
0:02:24.3]} 18. Rbd1 {[%clk 0:02:24.8]} 18... Rb4 {[%clk 0:02:16]} 19. c4 {[%clk
0:02:19.9]} 19... d4 {[%clk 0:01:39.1]} 20. Qg3 {[%clk 0:02:13.1]} 20... Qxg3
{[%clk 0:01:30.8]} 21. fxg3 {[%clk 0:02:12.6]} 21... Nd7 {[%clk 0:01:32.7]} 22.
Bf5 {[%clk 0:02:07]} 22... Rxa4 {[%clk 0:00:41.2]} 23. bxa4 {[%clk 0:01:56.7]}
23... c5 {[%clk 0:00:42.5]} 24. Rfe1 {[%clk 0:01:52.8]} 24... Kf8 {[%clk
0:00:32.9]} 25. Rxe8+ {[%clk 0:01:50.3]} 25... Kxe8 {[%clk 0:00:34.8]} 26. Re1+
{[%clk 0:01:51]} 26... Kd8 {[%clk 0:00:35]} 27. a5 {[%clk 0:01:41.8]} 27... f6
{[%clk 0:00:30]} 28. Bxd7 {[%clk 0:01:38.4]} 28... Kxd7 {[%clk 0:00:31.9]} 29.
Kf2 {[%clk 0:01:29.4]} 29... Ba6 {[%clk 0:00:32.6]} 30. Rc1 {[%clk 0:01:30.1]}
30... Kd6 {[%clk 0:00:32.2]} 31. Ke2 {[%clk 0:01:29.8]} 31... Ke5 {[%clk
0:00:26]} 32. Kd3 {[%clk 0:01:30.1]} 32... Bb7 {[%clk 0:00:27.1]} 33. Re1+
{[%clk 0:01:30.8]} 33... Kd6 {[%clk 0:00:28.1]} 34. Re2 {[%clk 0:01:27.2]} 34...
f5 {[%clk 0:00:29.3]} 35. Rf2 {[%clk 0:01:26.7]} 35... Ke5 {[%clk 0:00:29.4]}
36. Re2+ {[%clk 0:01:24.5]} 36... Be4+ {[%clk 0:00:30.2]} 37. Kd2 {[%clk
0:01:24.5]} 37... d3 {[%clk 0:00:30]} 38. Re1 {[%clk 0:01:22.1]} 38... Kd4
{[%clk 0:00:31.5]} 39. g4 {[%clk 0:01:19.7]} 39... f4 {[%clk 0:00:28.1]} 40. h4
{[%clk 0:00:49.4]} 40... Bxg2 {[%clk 0:00:27.7]} 41. Re7 {[%clk 0:00:49]} 41...
f3 {[%clk 0:00:20.6]} 42. Ke1 {[%clk 0:00:34.8]} 42... Kc3 {[%clk 0:00:17.1]}
43. Rd7 {[%clk 0:00:31.4]} 43... g5 {[%clk 0:00:17]} 44. hxg5 {[%clk 0:00:31.7]}
44... hxg5 {[%clk 0:00:18.9]} 45. Kf2 {[%clk 0:00:18.5]} 45... Kc2 {[%clk
0:00:16.4]} 46. Ke3 {[%clk 0:00:18.6]} 46... f2 {[%clk 0:00:13]} 47. Kxf2 {[%clk
0:00:19.4]} 47... d2 {[%clk 0:00:14.5]} 48. Kxg2 {[%clk 0:00:14.3]} 48... d1=Q
{[%clk 0:00:15.3]} 49. Rxd1 {[%clk 0:00:15.2]} 49... Kxd1 {[%clk 0:00:17.2]} 50.
Kf3 {[%clk 0:00:16.4]} 50... Kd2 {[%clk 0:00:15.2]} 51. Ke4 {[%clk 0:00:17.1]}
51... Kc3 {[%clk 0:00:15.4]} 52. Kd5 {[%clk 0:00:16.7]} 52... Kb4 {[%clk
0:00:16.8]} 53. a6 {[%clk 0:00:15]} 53... Ka5 {[%clk 0:00:12.2]} 54. Kxc5 {[%clk
0:00:15.9]} 54... Kxa6 {[%clk 0:00:13.6]} 55. Kd6 {[%clk 0:00:17.1]} 55... Kb7
{[%clk 0:00:14]} 56. c5 {[%clk 0:00:15.3]} 1-0

[Event "*** MasterClass Titled Tuesday Blitz"]
[Site "Chess.com"]
[Date "2017.10.03"]
[Round "2"]
[White "VladimirBelous"]
[Black "oskariot"]
[Result "1/2-1/2"]
[WhiteElo "2633"]
[BlackElo "2498"]
[TimeControl "180+2"]
[EndTime "13:24:57 PDT"]
[Termination "Game drawn by agreement"]

1. c4 {[%clk 0:03:00.6]} 1... Nf6 {[%clk 0:03:00]} 2. Nc3 {[%clk 0:03:01.2]}
2... e5 {[%clk 0:02:59.9]} 3. g3 {[%clk 0:02:59.5]} 3... Bb4 {[%clk 0:02:58.1]}
4. Bg2 {[%clk 0:02:59.2]} 4... O-O {[%clk 0:02:59.1]} 5. Qc2 {[%clk 0:03:00.2]}
5... Re8 {[%clk 0:02:57.1]} 6. Nf3 {[%clk 0:02:56.7]} 6... Bxc3 {[%clk
0:02:53.2]} 7. Qxc3 {[%clk 0:02:54.8]} 7... Nc6 {[%clk 0:02:54.6]} 8. O-O {[%clk
0:02:53]} 8... d6 {[%clk 0:02:52.3]} 9. d3 {[%clk 0:02:43.4]} 9... h6 {[%clk
0:02:47.7]} 10. e3 {[%clk 0:02:29.4]} 10... Bf5 {[%clk 0:02:46.3]} 11. a3 {[%clk
0:02:27.6]} 11... Qd7 {[%clk 0:02:46.7]} 12. b4 {[%clk 0:02:15.1]} 12... Bh3
{[%clk 0:02:46.3]} 13. b5 {[%clk 0:02:16.1]} 13... Ne7 {[%clk 0:02:42.7]} 14. a4
{[%clk 0:02:10.7]} 14... g5 {[%clk 0:02:32.3]} 15. d4 {[%clk 0:01:44.8]} 15...
e4 {[%clk 0:02:26.5]} 16. d5 {[%clk 0:01:23.4]} 16... exf3 {[%clk 0:01:58.8]}
17. Qxf6 {[%clk 0:01:23.2]} 17... Ng6 {[%clk 0:00:21.5]} 18. Qxf3 {[%clk
0:01:19.5]} 18... Ne5 {[%clk 0:00:22.1]} 19. Qf6 {[%clk 0:01:16.5]} 19... Qf5
{[%clk 0:00:23.3]} 20. Qxf5 {[%clk 0:00:49.5]} 20... Bxf5 {[%clk 0:00:24.1]} 21.
e4 {[%clk 0:00:51.1]} 21... Bh7 {[%clk 0:00:20.6]} 22. Ra3 {[%clk 0:00:49.3]}
22... Nxc4 {[%clk 0:00:20]} 23. Rc3 {[%clk 0:00:50.2]} 23... Nb6 {[%clk
0:00:21.4]} 24. a5 {[%clk 0:00:42.4]} 24... Na4 {[%clk 0:00:20.9]} 25. Rxc7
{[%clk 0:00:42.8]} 25... Bxe4 {[%clk 0:00:22.1]} 26. Bxe4 {[%clk 0:00:41.7]}
26... Rxe4 {[%clk 0:00:24]} 27. Be3 {[%clk 0:00:39]} 27... b6 {[%clk 0:00:20.1]}
28. Ra1 {[%clk 0:00:33.7]} 28... Rb4 {[%clk 0:00:11.3]} 29. Rd7 {[%clk
0:00:22.4]} 29... bxa5 {[%clk 0:00:12.3]} 30. Rxa7 {[%clk 0:00:20.7]} 30... Rxa7
{[%clk 0:00:13]} 31. Bxa7 {[%clk 0:00:22.6]} 31... Nc3 {[%clk 0:00:14.2]} 32. b6
{[%clk 0:00:17.6]} 32... Nxd5 {[%clk 0:00:14]} 33. Rxa5 {[%clk 0:00:18.3]} 33...
Nxb6 {[%clk 0:00:15.4]} 34. Bb8 {[%clk 0:00:18.6]} 34... Nc4 {[%clk 0:00:15.3]}
35. Ra8 {[%clk 0:00:20.1]} 35... Kg7 {[%clk 0:00:16.1]} 36. Ba7 {[%clk
0:00:21.7]} 36... Ne5 {[%clk 0:00:14.3]} 37. Rc8 {[%clk 0:00:15.7]} 37... g4
{[%clk 0:00:14.6]} 38. Kg2 {[%clk 0:00:15.9]} 38... h5 {[%clk 0:00:15.8]} 39. h3
{[%clk 0:00:16.2]} 39... Rb1 {[%clk 0:00:14.7]} 40. Bd4 {[%clk 0:00:16.6]} 40...
Kg6 {[%clk 0:00:15.4]} 41. hxg4 {[%clk 0:00:14.3]} 41... hxg4 {[%clk 0:00:16.4]}
42. Bxe5 {[%clk 0:00:15.5]} 42... dxe5 {[%clk 0:00:18.3]} 43. Rg8+ {[%clk
0:00:16.8]} 43... Kf5 {[%clk 0:00:19.1]} 44. Rc8 {[%clk 0:00:18.2]} 44... f6
{[%clk 0:00:20.2]} 45. Rc4 {[%clk 0:00:19.4]} 45... Rb2 {[%clk 0:00:21.5]} 46.
Ra4 {[%clk 0:00:20.5]} 46... Kg5 {[%clk 0:00:22.7]} 47. Rc4 {[%clk 0:00:21.8]}
47... f5 {[%clk 0:00:23.7]} 48. Rc5 {[%clk 0:00:22.7]} 48... Kf6 {[%clk
0:00:24.9]} 49. Rc6+ {[%clk 0:00:23.8]} 49... Ke7 {[%clk 0:00:25.8]} 50. Rg6
{[%clk 0:00:24.7]} 50... Kf7 {[%clk 0:00:27]} 51. Ra6 {[%clk 0:00:25.3]} 51...
Rb5 {[%clk 0:00:27.7]} 52. Rc6 {[%clk 0:00:26.3]} 52... Rd5 {[%clk 0:00:28.9]}
53. Rb6 {[%clk 0:00:27.3]} 53... Ke7 {[%clk 0:00:30.3]} 54. Rg6 {[%clk
0:00:28.1]} 54... Rd6 {[%clk 0:00:30.5]} 55. Rg7+ {[%clk 0:00:26.3]} 55... Kf6
{[%clk 0:00:31.6]} 56. Rb7 {[%clk 0:00:27.7]} 56... f4 {[%clk 0:00:31.2]} 57.
gxf4 {[%clk 0:00:27.8]} 57... exf4 {[%clk 0:00:32.6]} 58. Rb5 {[%clk 0:00:29.3]}
58... Re6 {[%clk 0:00:34.1]} 59. Rb4 {[%clk 0:00:29.8]} 59... Kf5 {[%clk
0:00:34.9]} 60. Rb5+ {[%clk 0:00:31.1]} 60... Re5 {[%clk 0:00:36.1]} 61. Rb8
{[%clk 0:00:32.1]} 61... Re2 {[%clk 0:00:35.2]} 62. Rf8+ {[%clk 0:00:33.2]}
62... Kg5 {[%clk 0:00:36.6]} 63. Rg8+ {[%clk 0:00:34.3]} 63... Kh5 {[%clk
0:00:24.7]} 64. Rh8+ {[%clk 0:00:34.6]} 64... Kg5 {[%clk 0:00:25.9]} 65. Rg8+
{[%clk 0:00:35.8]} 1/2-1/2

[Event "*** MasterClass Titled Tuesday Blitz"]
[Site "Chess.com"]
[Date "2017.10.03"]
[Round "2"]
[White "EuropeanChampion"]
[Black "PowerThinking2650"]
[Result "0-1"]
[WhiteElo "2181"]
[BlackElo "2142"]
[TimeControl "180+2"]
[EndTime "13:25:07 PDT"]
[Termination "PowerThinking2650 won by checkmate"]

1. e4 {[%clk 0:03:01.9]} 1... e5 {[%clk 0:02:59.4]} 2. Nf3 {[%clk 0:03:02.8]}
2... Nc6 {[%clk 0:03:00.2]} 3. Bc4 {[%clk 0:03:04.2]} 3... Nf6 {[%clk
0:03:00.2]} 4. d4 {[%clk 0:03:04.9]} 4... exd4 {[%clk 0:02:59.3]} 5. e5 {[%clk
0:03:06.8]} 5... d5 {[%clk 0:03:00.2]} 6. Bb5 {[%clk 0:03:08.3]} 6... Ne4 {[%clk
0:03:01.6]} 7. Nxd4 {[%clk 0:03:09.9]} 7... Bd7 {[%clk 0:03:02.6]} 8. Bxc6
{[%clk 0:03:11.3]} 8... bxc6 {[%clk 0:03:03.5]} 9. O-O {[%clk 0:03:12.9]} 9...
Bc5 {[%clk 0:03:01.9]} 10. Be3 {[%clk 0:03:14.1]} 10... Bb6 {[%clk 0:02:58.5]}
11. Nd2 {[%clk 0:03:14]} 11... Nxd2 {[%clk 0:02:46.8]} 12. Qxd2 {[%clk
0:03:15.9]} 12... O-O {[%clk 0:02:47.7]} 13. Nb3 {[%clk 0:03:13]} 13... f6
{[%clk 0:02:45.4]} 14. f4 {[%clk 0:03:11]} 14... fxe5 {[%clk 0:02:44.1]} 15.
fxe5 {[%clk 0:03:12.9]} 15... Qg5 {[%clk 0:02:32.4]} 16. Bxb6 {[%clk 0:02:46.4]}
16... Qxd2 {[%clk 0:02:28]} 17. Nxd2 {[%clk 0:02:48.3]} 17... axb6 {[%clk
0:02:28.3]} 18. a3 {[%clk 0:02:46.2]} 18... Bf5 {[%clk 0:02:22.4]} 19. c3 {[%clk
0:02:43.6]} 19... Bd3 {[%clk 0:02:17.8]} 20. Rf3 {[%clk 0:02:44.7]} 20... Rxf3
{[%clk 0:02:04.3]} 21. Nxf3 {[%clk 0:02:46.6]} 21... c5 {[%clk 0:01:59.8]} 22.
Rd1 {[%clk 0:02:46.3]} 22... Be4 {[%clk 0:01:56.3]} 23. Ng5 {[%clk 0:02:35.6]}
23... Re8 {[%clk 0:01:37.8]} 24. Nxe4 {[%clk 0:02:20.4]} 24... dxe4 {[%clk
0:01:36.7]} 25. Rd7 {[%clk 0:02:22]} 25... Rxe5 {[%clk 0:01:35.2]} 26. Rxc7
{[%clk 0:02:23.6]} 26... e3 {[%clk 0:01:20.9]} 27. Kf1 {[%clk 0:02:21.7]} 27...
Rf5+ {[%clk 0:01:21]} 28. Ke2 {[%clk 0:02:16.1]} 28... Rf2+ {[%clk 0:01:21.6]}
29. Kxe3 {[%clk 0:02:17.4]} 29... Rxb2 {[%clk 0:01:17.9]} 30. Rc6 {[%clk
0:02:18.2]} 30... Rxg2 {[%clk 0:00:59.9]} 31. Rxb6 {[%clk 0:02:19]} 31... Rxh2
{[%clk 0:00:56.4]} 32. Rb5 {[%clk 0:02:16.7]} 32... Ra2 {[%clk 0:00:52.7]} 33.
Ra5 {[%clk 0:02:13.7]} 33... h6 {[%clk 0:00:47.6]} 34. Kf4 {[%clk 0:02:13.5]}
34... Kh7 {[%clk 0:00:47.2]} 35. Kf5 {[%clk 0:02:14.4]} 35... Rg2 {[%clk
0:00:23.4]} 36. Kf4 {[%clk 0:02:11.2]} 36... g5+ {[%clk 0:00:20.1]} 37. Kf3
{[%clk 0:02:11.7]} 37... Ra2 {[%clk 0:00:18.6]} 38. Kg4 {[%clk 0:02:12.5]} 38...
Rg2+ {[%clk 0:00:16.5]} 39. Kf5 {[%clk 0:02:13.9]} 39... Rf2+ {[%clk 0:00:17]}
40. Kg4 {[%clk 0:02:14.9]} 40... Rf4+ {[%clk 0:00:15.6]} 41. Kg3 {[%clk
0:02:16.3]} 41... Rc4 {[%clk 0:00:12.1]} 42. Ra6 {[%clk 0:02:13.3]} 42... Kg7
{[%clk 0:00:09.7]} 43. a4 {[%clk 0:02:12.7]} 43... h5 {[%clk 0:00:08.5]} 44. a5
{[%clk 0:02:14.1]} 44... Rxc3+ {[%clk 0:00:09.6]} 45. Kg2 {[%clk 0:02:15.7]}
45... g4 {[%clk 0:00:10.6]} 46. Re6 {[%clk 0:02:14.5]} 46... h4 {[%clk
0:00:11.2]} 47. a6 {[%clk 0:02:15.9]} 47... Rc2+ {[%clk 0:00:11.8]} 48. Kf1
{[%clk 0:02:17.3]} 48... h3 {[%clk 0:00:10.9]} 49. Re4 {[%clk 0:02:16.4]} 49...
h2 {[%clk 0:00:08.9]} 50. Rxg4+ {[%clk 0:02:17.2]} 50... Kf6 {[%clk 0:00:10]}
51. Rh4 {[%clk 0:02:16.8]} 51... Ke5 {[%clk 0:00:05.9]} 52. a7 {[%clk
0:02:16.1]} 52... Ra2 {[%clk 0:00:02.5]} 53. Rh5+ {[%clk 0:02:16.4]} 53... Kd4
{[%clk 0:00:03]} 54. Rxh2 {[%clk 0:02:07.4]} 54... Rxa7 {[%clk 0:00:02.7]} 55.
Rh4+ {[%clk 0:02:08.8]} 55... Kc3 {[%clk 0:00:03.4]} 56. Ke2 {[%clk 0:02:10.1]}
56... Ra2+ {[%clk 0:00:03.3]} 57. Ke3 {[%clk 0:02:11.6]} 57... c4 {[%clk
0:00:04.1]} 58. Rh8 {[%clk 0:02:13.2]} 58... Kc2 {[%clk 0:00:04.8]} 59. Rb8
{[%clk 0:02:14.7]} 59... c3 {[%clk 0:00:04.7]} 60. Rb4 {[%clk 0:02:16.3]} 60...
Ra6 {[%clk 0:00:04.7]} 61. Rb5 {[%clk 0:02:16.8]} 61... Rd6 {[%clk 0:00:05.5]}
62. Rc5 {[%clk 0:02:17.2]} 62... Kb2 {[%clk 0:00:06.1]} 63. Rb5+ {[%clk
0:02:18.3]} 63... Kc1 {[%clk 0:00:07.2]} 64. Ke2 {[%clk 0:02:19.9]} 64... c2
{[%clk 0:00:07.5]} 65. Rb8 {[%clk 0:02:21.4]} 65... Rd5 {[%clk 0:00:08.4]} 66.
Rb3 {[%clk 0:02:22.1]} 66... Re5+ {[%clk 0:00:09.1]} 67. Kd3 {[%clk 0:02:23.3]}
67... Kd1 {[%clk 0:00:09.6]} 68. Kd4 {[%clk 0:02:22.1]} 68... Re8 {[%clk
0:00:08.8]} 69. Rh3 {[%clk 0:02:21.7]} 69... c1=Q {[%clk 0:00:07.1]} 70. Rh1+
{[%clk 0:02:22.7]} 70... Kc2 {[%clk 0:00:08]} 71. Rxc1+ {[%clk 0:02:23.1]} 71...
Kxc1 {[%clk 0:00:09.2]} 72. Kd5 {[%clk 0:02:25]} 72... Rh8 {[%clk 0:00:08.6]}
73. Kd6 {[%clk 0:02:26.9]} 73... Rh6+ {[%clk 0:00:07]} 74. Kd7 {[%clk
0:02:28.8]} 74... Rh5 {[%clk 0:00:08.2]} 75. Kd8 {[%clk 0:02:30.7]} 75... Rh4
{[%clk 0:00:09.9]} 76. Ke7 {[%clk 0:02:30.9]} 76... Kd2 {[%clk 0:00:11.8]} 77.
Kf6 {[%clk 0:02:32.8]} 77... Ke3 {[%clk 0:00:13.3]} 78. Kf5 {[%clk 0:02:34.7]}
78... Rf4+ {[%clk 0:00:14.1]} 79. Ke5 {[%clk 0:02:34.9]} 79... Rd4 {[%clk
0:00:15.2]} 80. Kf5 {[%clk 0:02:35.9]} 80... Re4 {[%clk 0:00:14.5]} 81. Kg5
{[%clk 0:02:35.3]} 81... Kd4 {[%clk 0:00:14.8]} 82. Kf5 {[%clk 0:02:37.2]} 82...
Kd5 {[%clk 0:00:15.9]} 83. Kg5 {[%clk 0:02:38.5]} 83... Ke5 {[%clk 0:00:16.9]}
84. Kg6 {[%clk 0:02:40.1]} 84... Ke6 {[%clk 0:00:16.7]} 85. Kg7 {[%clk
0:02:41.4]} 85... Rg4+ {[%clk 0:00:15]} 86. Kh6 {[%clk 0:02:42.9]} 86... Kf6
{[%clk 0:00:12.4]} 87. Kh5 {[%clk 0:02:44]} 87... Re4 {[%clk 0:00:12.8]} 88. Kh6
{[%clk 0:02:44.5]} 88... Rh4# {[%clk 0:00:13.4]} 0-1